lending/lending_fUSD_20241214
["ID","MTS","AMOUNT","RATE_DAILY","PERIOD"]
[345360178,1734183046617,-546.89583732,0.000212,2]
[345360180,1734183062317,5600.4267059,0.00011,2]
[345360183,1734183137459,151.7,0.00010137,2]
[345360196,1734184011092,-165.52,0.0001541,2]
[345360197,1734184011114,-135.29279668,0.00016989,2]
[345360198,1734184035097,-680.13550567,0.00016989,2]
[345360199,1734184035120,-191.49011438,0.00017039,2]
[345360200,1734184036118,-246.74620726,0.00017039,2]
[345360201,1734184046111,-377.19198071,0.00017039,2]
[345360202,1734184046135,-1346.00956316,0.00017239,2]
[345360207,1734184135037,309.48,0.00010137,2]
[345360209,1734184149119,-309.48,0.00016813,2]
[345360210,1734184149143,-140.26043684,0.00017239,2]
[345360211,1734184149163,-1821.034051,0.00018227,2]
[345360212,1734184149184,-1392.30948601,0.00018319,2]
[345360213,1734184149205,-1392.30948599,0.00018366,2]
[345360214,1734184149226,-1392.30948599,0.00018412,2]
[345360215,1734184149246,-150.0,0.00018685,2]
[345360216,1734184149267,-1500.0,0.00018779,2]
[345360217,1734184149293,-300.0,0.00018896,2]
[345360218,1734184149314,-3348.94,0.00018897,2]
[345360219,1734184149334,-2510.35,0.00018897,2]
[345360220,1734184149355,-406.69058192,0.00018925,2]
[345360221,1734184149376,-312.17,0.00018937,2]
[345360222,1734184149399,-467.58721225,0.00018938,2]
[345360223,1734184226963,2000.0,0.00018784,120]
[345360227,1734184232381,-166.98,0.00018793,2]
[345360228,1734184232391,-661.02,0.00018814,2]
[345360229,1734184232442,-428.73000001,0.00018814,2]
[345360230,1734184232453,-334.08774945,0.00018814,2]
[345360256,1734184238304,-3259.27953756,0.00018814,2]
[345360257,1734184238470,-627.95550503,0.00018814,2]
[345360258,1734184238528,-1810.50855534,0.00018814,2]
[345360259,1734184238611,-96.84729111,0.00018814,2]
[345360261,1734184238709,-5344.2613615,0.00018814,2]
[345360262,1734184238718,-32.41278775,0.00018938,2]
[345360263,1734184238727,-563.01107258,0.00018965,2]
[345360264,1734184238740,-1947.44,0.00018965,2]
[345360265,1734184238751,-245.88892742,0.00018965,2]
[345360266,1734184238759,-43.08105508,0.00018968,2]
[345360267,1734184238770,-206.91894492,0.00018968,2]
[345360268,1734184238779,-156.48,0.0001898,2]
[345360269,1734184238788,-156.48,0.00018987,2]
[345360270,1734184238797,-156.48,0.00018993,2]
[345360271,1734184238806,-156.48,0.00019,2]
[345360272,1734184238815,-500.0,0.00019004,2]
[345360274,1734184238824,-156.48,0.00019007,2]
[345360276,1734184238833,-250.0,0.00019012,2]
[345360278,1734184238843,-2751.0,0.00019013,2]
[345360280,1734184238855,-156.48,0.00019014,2]
[345360282,1734184238864,-156.48,0.0001902,2]
[345360284,1734184238874,-156.48,0.00019027,2]
[345360286,1734184238883,-156.48,0.00019034,2]
[345360288,1734184238893,-200.0,0.00019035,2]
[345360290,1734184238902,-3437.94,0.0001904,2]
[345360292,1734184238911,-156.48,0.00019041,2]
[345360294,1734184238920,-156.48,0.00019048,2]
[345360296,1734184238930,-547.28,0.00019053,2]
[345360298,1734184238939,-156.48,0.00019054,2]
[345360300,1734184238948,-156.48,0.00019061,2]
[345360302,1734184238958,-156.48,0.00019068,2]
[345360304,1734184238966,-156.48,0.00019075,2]
[345360306,1734184238976,-931.27,0.00019098,2]
[345360308,1734184238989,-164.46,0.0001912,2]
[345360310,1734184238998,-258.71,0.00019157,2]
[345360312,1734184239011,-1000.0,0.00019178,5]
[345360314,1734184239020,-250.0,0.00019192,2]
[345360316,1734184239029,-3932.9,0.00019244,2]
[345360318,1734184239038,-1000.0,0.00019284,2]
[345360320,1734184239047,-695.0,0.00019291,2]
[345360322,1734184239056,-406.69058192,0.00019291,2]
[345360324,1734184239064,-338.62,0.00019291,2]
[345360326,1734184239073,-3931.1032295,0.00019313,2]
[345360339,1734184239256,-191.46779643,0.00019313,2]
[345360341,1734184240438,-328.05823,0.00019313,2]
[345360342,1734184240450,-586.29909364,0.00019313,2]
[345360343,1734184240499,-9381.119514,0.00019313,2]
[345360344,1734184240511,-5471.8373109,0.00019313,2]
[345360345,1734184240612,-806.400008,0.00019313,2]
[345360354,1734184243344,-1007.5,0.00019313,2]
[345360361,1734184243474,-904.89450476,0.00019313,2]
[345360362,1734184243571,-1291.32031277,0.00019313,2]
[345360363,1734184243580,-154.34,0.00019316,30]
[345360364,1734184243589,-200.0,0.00019352,2]
[345360365,1734184243597,-295.5,0.00019354,2]
[345360366,1734184243606,-163.68,0.00019412,2]
[345360367,1734184243615,-179.39159282,0.00019452,6]
[345360368,1734184243626,-820.60840718,0.00019452,6]
[345360369,1734184243635,-167.35,0.00019457,2]
[345360370,1734184243644,-1486.27,0.00019503,2]
[345360371,1734184243653,-406.69058192,0.00019546,2]
[345360372,1734184243662,-214.47975092,0.000196,2]
[345360373,1734184243671,-231.26209293,0.00019684,2]
[345360374,1734184243682,-1000.0,0.00019726,7]
[345360375,1734184243691,-406.69058192,0.00019752,2]
[345360376,1734184243699,-191.40720438,0.00019804,2]
[345360377,1734184243711,-739.86279562,0.00019804,2]
[345360378,1734184243721,-153.0,0.00019866,2]
[345360379,1734184243730,-153.0,0.00019866,2]
[345360380,1734184243743,-153.0,0.00019866,2]
[345360381,1734184243752,-153.0,0.00019866,2]
[345360382,1734184243761,-153.0,0.00019866,2]
[345360383,1734184243771,-153.0,0.00019866,2]
[345360384,1734184243779,-151.7,0.00019895,2]
[345360385,1734184243788,-2908.03720438,0.00019984,2]
[345360387,1734184243800,-3066.65680369,0.00019984,2]
[345360388,1734184243846,-33.42364402,0.00019984,2]
[345360392,1734184246389,-151.28,0.00019246,2]
[345360393,1734184246399,-354.07,0.00019984,2]
[345360394,1734184246411,-2522.81234791,0.00019984,2]
[345360395,1734184246420,-1000.0,0.0002,8]
[345360396,1734184246429,-338.62,0.00020005,2]
[345360397,1734184246439,-547.28,0.00020006,2]
[345360398,1734184246448,-391.67574209,0.00020038,2]
[345360399,1734184246459,-55.68425791,0.00020038,2]
[345360400,1734184246469,-447.36,0.00020043,2]
[345360401,1734184246478,-447.36,0.00020048,2]
[345360402,1734184246490,-447.36,0.00020054,2]
[345360403,1734184246502,-447.36,0.00020059,2]
[345360404,1734184246512,-49482.0,0.00020061,2]
[345360405,1734184246521,-447.36,0.00020064,2]
[345360406,1734184246531,-447.36,0.00020069,2]
[345360407,1734184246540,-447.36,0.00020075,2]
[345360408,1734184246549,-447.36,0.0002008,2]
[345360409,1734184246558,-447.36,0.00020085,2]
[345360410,1734184246725,-447.36,0.0002009,2]
[345360411,1734184246739,-447.36,0.00020096,2]
[345360412,1734184246749,-447.36,0.00020101,2]
[345360413,1734184246758,-447.36,0.00020106,2]
[345360414,1734184246768,-447.36,0.00020111,2]
[345360415,1734184246781,-447.36,0.00020117,2]
[345360416,1734184246790,-447.36,0.00020122,2]
[345360417,1734184246803,-447.36,0.00020127,2]
[345360418,1734184246812,-447.36,0.00020132,2]
[345360419,1734184246822,-447.36,0.00020138,2]
[345360420,1734184246831,-150.0,0.00020244,4]
[345360421,1734184246841,-150.0,0.00020244,4]
[345360422,1734184246854,-150.0,0.00020244,4]
[345360423,1734184246863,-150.0,0.00020244,4]
[345360424,1734184246872,-150.0,0.00020244,4]
[345360425,1734184246882,-1000.0,0.00020273,9]
[345360426,1734184246892,-150.0,0.00020372,2]
[345360427,1734184246901,-200.0,0.00020448,2]
[345360428,1734184246910,-530.53682775,0.000205,2]
[345360429,1734184246920,-931.27,0.00020511,2]
[345360430,1734184246930,-1000.0,0.00020547,10]
[345360431,1734184246939,-150.0,0.00020572,2]
[345360432,1734184246948,-2500.0,0.00020629,2]
[345360433,1734184246957,-1750.97519978,0.00020673,2]
[345360434,1734184246967,-500.0,0.00020703,2]
[345360435,1734184246976,-500.0,0.00020703,2]
[345360436,1734184246990,-487.0,0.00020703,2]
[345360437,1734184246999,-338.62,0.00020719,2]
[345360438,1734184247009,-500.0,0.00020721,2]
[345360439,1734184247018,-597.14228043,0.00020721,2]
[345360440,1734184247027,-500.0,0.00020721,2]
[345360441,1734184247037,-500.0,0.00020721,2]
[345360442,1734184247046,-500.0,0.00020721,2]
[345360443,1734184247056,-236.37971333,0.00020721,2]
[345360444,1734184247065,-500.0,0.00020721,2]
[345360445,1734184247074,-500.0,0.00020721,2]
[345360446,1734184247083,-500.0,0.00020721,2]
[345360447,1734184247093,-9004.72534908,0.00020722,2]
[345360448,1734184247103,-4573.8826,0.00020729,2]
[345360449,1734184247112,-29710.3045,0.00020729,2]
[345360450,1734184247121,-400.0,0.000208,7]
[345360451,1734184247131,-150.0,0.00020806,4]
[345360452,1734184247140,-1000.0,0.00020821,11]
[345360453,1734184247149,-5269.52720093,0.00020829,2]
[345360454,1734184247165,-42166.99279907,0.00020829,2]
[345360455,1734184247175,-1360.27413,0.0002088,2]
[345360456,1734184247184,-543.21325616,0.00020887,5]
[345360457,1734184247194,-1915.82051244,0.00020889,5]
[345360458,1734184247203,-434.22793703,0.00020891,5]
[345360459,1734184247212,-7773.69761683,0.00020895,2]
[345360460,1734184247359,-1839.99999992,0.00020895,2]
[345360461,1734184247374,-3679.39999996,0.00020895,2]
[345360463,1734185253009,237.67,0.00010137,2]
[345360466,1734185352144,-450.0,0.00013,2]
[345360467,1734185352165,-300.0,0.00014999,2]
[345360468,1734185352185,-150.0,0.00014999,2]
[345360469,1734185352207,-1268.02740456,0.00015,2]
[345360471,1734185364141,-1217.72603286,0.00015,2]
[345360472,1734185366142,-26872.82206,0.00015,2]
[345360473,1734185371112,-5274.18047745,0.00015,2]
[345360478,1734185431584,-300.0,0.00014999,2]
[345360479,1734185431594,-1644.62681118,0.00015,2]
[345360480,1734185431679,-1930.0,0.00015,2]
[345360481,1734185431691,-11792.61721395,0.00015,2]
[345360482,1734185431701,-477.0,0.00015,2]
[345360483,1734185431710,-500.0,0.00015,2]
[345360484,1734185431720,-150.0,0.00016124,2]
[345360485,1734185431729,-150.0,0.00016266,2]
[345360486,1734185431739,-420.0,0.00016416,2]
[345360487,1734185431748,-237.67,0.00016813,2]
[345360488,1734185431758,-41638.56763954,0.00017,2]
[345360489,1734185431770,-8361.43236046,0.00017,2]
[345360490,1734185431779,-550.0,0.00017,2]
[345360491,1734185431789,-1584.32,0.00017196,2]
[345360492,1734185431799,-587.0,0.00017966,2]
[345360493,1734185431808,-292.09107463,0.00018181,2]
[345360494,1734185431818,-500.0,0.00018181,2]
[345360495,1734185431827,-500.0,0.00018181,2]
[345360496,1734185431836,-500.0,0.00018181,2]
[345360497,1734185431845,-500.0,0.00018181,2]
[345360498,1734185431855,-500.0,0.00018181,2]
[345360499,1734185431864,-500.0,0.00018181,2]
[345360500,1734185431872,-500.0,0.00018181,2]
[345360501,1734185431882,-500.0,0.00018181,2]
[345360502,1734185431891,-179.21515648,0.00018181,2]
[345360503,1734185431900,-500.0,0.00018181,2]
[345360504,1734185431910,-500.0,0.00018181,2]
[345360505,1734185431919,-500.0,0.00018181,2]
[345360506,1734185431928,-500.0,0.00018181,2]
[345360507,1734185431940,-500.0,0.00018181,2]
[345360508,1734185431950,-500.0,0.00018181,2]
[345360509,1734185431960,-500.0,0.00018181,2]
[345360510,1734185431970,-500.0,0.00018181,2]
[345360512,1734185431979,-500.0,0.00018181,2]
[345360514,1734185431989,-500.0,0.00018181,2]
[345360516,1734185431999,-500.0,0.00018181,2]
[345360518,1734185432008,-500.0,0.00018181,2]
[345360520,1734185432017,-500.0,0.00018181,2]
[345360522,1734185432028,-500.0,0.00018181,2]
[345360523,1734185432037,-500.0,0.00018181,2]
[345360524,1734185432047,-500.0,0.00018181,2]
[345360525,1734185432056,-500.0,0.00018181,2]
[345360526,1734185432066,-500.0,0.00018181,2]
[345360527,1734185432075,-26344.13674744,0.00018182,2]
[345360529,1734185432087,-2312.0,0.00018182,2]
[345360537,1734185432118,-11375.86325256,0.00018182,2]
[345360540,1734185432128,-200.01536571,0.000182,2]
[345360544,1734185432138,-159.86153827,0.000182,2]
[345360547,1734185432147,-257.26736089,0.000182,2]
[345360550,1734185432156,-206.34363176,0.000182,2]
[345360553,1734185432165,-500.0,0.000182,2]
[345360556,1734185432175,-159.85886267,0.000182,2]
[345360557,1734185432184,-159.86153827,0.000182,2]
[345360560,1734185432194,-23900.0,0.00018583,2]
[345360578,1734185432203,-487.31,0.00018657,2]
[345360579,1734185432375,-1255.17,0.00018699,2]
[345360580,1734185432385,-250.0,0.00018731,2]
[345360581,1734185432395,-844.24741654,0.00018748,2]
[345360582,1734185432403,-200.0,0.0001875,2]
[345360583,1734185432412,-1054.45,0.0001875,2]
[345360584,1734185432422,-1500.0,0.00018752,2]
[345360585,1734185432431,-166.98,0.00018759,2]
[345360586,1734185432440,-2751.0,0.00018775,2]
[345360587,1734185432449,-373.28854244,0.0001885,2]
[345360588,1734185432458,-250.0,0.00018914,2]
[345360589,1734185432468,-600.0,0.00019,2]
[345360591,1734185432477,-200.0,0.00019022,2]
[345360593,1734185432486,-551.34,0.0001903,2]
[345360595,1734185432495,-240.74,0.0001903,2]
[345360597,1734185432503,-200.0,0.00019042,2]
[345360599,1734185432513,-250.0,0.00019042,2]
[345360601,1734185432522,-950.26,0.00019059,2]
[345360603,1734185432532,-858.83201575,0.00019178,5]
[345360605,1734185432541,-328.36,0.0001925,2]
[345360607,1734185432551,-753.06,0.00019265,2]
[345360609,1734185432564,-487.31,0.00019347,2]
[345360611,1734185432576,-155.8,0.00019456,30]
[345360613,1734185432585,-1584.32,0.0001946,2]
[345360615,1734185432595,-412.23,0.00019485,2]
[345360617,1734185432603,-1000.0,0.0001949,2]
[345360619,1734185432612,-410.98275918,0.00019523,2]
[345360621,1734185432621,-200.0,0.0001954,2]
[345360623,1734185432631,-2167.46,0.00019569,2]
[345360625,1734185432640,-551.34,0.00019734,2]
[345360627,1734185432649,-410.98275918,0.00019741,2]
[345360629,1734185432658,-3000.0,0.0002,2]
[345360631,1734185432667,-410.98275918,0.00020031,2]
[345360633,1734185432676,-487.31,0.00020037,2]
[345360635,1734185432685,-328.36,0.00020212,2]
[345360637,1734185432694,-150.0,0.00020244,4]
[345360639,1734185432704,-150.0,0.00020244,4]
[345360641,1734185432713,-154.84099334,0.00020244,4]
[345360643,1734185432722,-410.98275918,0.00020328,2]
[345360645,1734185432732,-551.34,0.00020438,2]
[345360647,1734185432741,-1188.91109193,0.00020492,2]
[345360649,1734185432751,-159.86267472,0.00020492,2]
[345360651,1734185432760,-300.0,0.000205,7]
[345360653,1734185432769,-500.0,0.00020529,2]
[345360655,1734185432778,-151.32,0.00020582,2]
[345360657,1734185432787,-151.32,0.00020582,2]
[345360659,1734185432796,-151.32,0.00020582,2]
[345360661,1734185432807,-151.32,0.00020582,2]
[345360663,1734185432816,-151.32,0.00020582,2]
[345360665,1734185432825,-151.32,0.00020582,2]
[345360667,1734185432834,-810.06726012,0.00020582,2]
[345360669,1734185432843,-810.06726012,0.00020582,2]
[345360671,1734185432852,-185.39772911,0.00020591,2]
[345360673,1734185432862,-457018.84902123,0.00020592,4]
[345360675,1734185432873,-273.95001893,0.00020592,4]
[345360677,1734185432884,-10108.0,0.00020592,4]
[345360679,1734185432894,-99428.9487076,0.00020592,4]
[345360689,1734185437510,-17823.33982749,0.00020592,4]
[345360690,1734185437522,-25756.8164758,0.00020592,4]
[345360691,1734185437547,-433.8,0.00020592,4]
[345360692,1734185437661,-28760.69968,0.00020592,4]
[345360701,1734185439587,-373.7396675,0.00020592,4]
[345360702,1734185439598,-970.395,0.00020592,4]
[345360703,1734185439609,-275.04589968,0.00020592,4]
[345360704,1734185439700,-8792.46350777,0.00020592,4]
[345360705,1734185439711,-417.76166719,0.00020592,4]
[345360706,1734185439867,-2047.5426076,0.00020592,4]
[345360714,1734185442581,-1326.41000008,0.00020592,4]
[345360715,1734185442593,-4231.48621879,0.00020592,4]
[345360720,1734185442767,-159.86153731,0.000182,2]
[345360721,1734185442777,-790.1384617,0.00020592,4]
[345360722,1734185442789,-2558.0,0.00020592,4]
[345360723,1734185442801,-134288.0,0.00020592,4]
[345360724,1734185442870,-730.07140233,0.00020592,4]
[345360725,1734185442881,-652.62529538,0.00020592,4]
[345360726,1734185442893,-5665.82413822,0.00020592,4]
[345360738,1734185445572,-791.59611,0.00020592,4]
[345360739,1734185445593,-1767.088835,0.00020592,4]
[345360740,1734185445604,-2720.269233,0.00020592,4]
[345360741,1734185445802,-493.46932375,0.00020592,4]
[345360742,1734185445828,-538.70369134,0.00020592,4]
[345360743,1734185445840,-780.0,0.00020592,4]
[345360748,1734186145526,563.22,0.00018765,120]
[345360750,1734186308293,84661.49060468,0.0001,2]
[345360752,1734186437143,-166.66666667,0.00013599,2]
[345360753,1734186437163,-160.37,0.00013699,2]
[345360754,1734186437182,-206.88973782,0.00013699,2]
[345360755,1734186437203,-60.14843579,0.00015497,2]
[345360756,1734186479924,168511.89077039,0.000119,2]
[345360764,1734186574089,-106.88156421,0.00015497,2]
[345360765,1734186601042,200.0,0.0001542,2]
[345360766,1734186609663,153.66,0.00010137,2]
[345360768,1734186625269,450.0,0.00013,2]
[345360769,1734186626376,500.0,0.00015,2]
[345360771,1734186631680,-153.66,0.00016813,2]
[345360773,1734186631689,-1061.515418,0.00016901,2]
[345360776,1734186631698,-163.48889852,0.00016986,2]
[345360782,1734186631763,-1519.47110148,0.00016986,2]
[345360783,1734186631772,-550.0,0.00017,2]
[345360784,1734186631781,-4634.78936124,0.00017678,2]
[345360785,1734186631792,-2525.0000005,0.00017678,2]
[345360786,1734186631803,-623.44006736,0.00017678,2]
[345360787,1734186631814,-6624.88154751,0.00017678,2]
[345360788,1734186631863,-1013.5125,0.00017678,2]
[345360789,1734186632011,-4979.05563204,0.00017678,2]
[345360790,1734186632038,-4844.67514897,0.00017678,2]
[345360810,1734186637697,-7919.83225404,0.00017678,2]
[345360811,1734186637768,-895.6740144,0.00017678,2]
[345360812,1734186637780,-7872.20000002,0.00017678,2]
[345360813,1734186637792,-2248.8,0.00017678,2]
[345360814,1734186637844,-655.655,0.00017678,2]
[345360815,1734186637855,-256.79519952,0.00017678,2]
[345360902,1734186639752,-666.330025,0.00017678,2]
[345360903,1734186639763,-402.55967856,0.00017678,2]
[345360904,1734186639857,-468.69000001,0.00017678,2]
[345360905,1734186639868,-460.14525258,0.00017678,2]
[345360906,1734186639879,-2884.83447765,0.00017678,2]
[345360907,1734186639891,-468.3580944,0.00017678,2]
[345360908,1734186639926,-6823.4103586,0.00017678,2]
[345360909,1734186639935,-2501.01705,0.00018,2]
[345360910,1734186639945,-15091.53927819,0.00018,2]
[345360911,1734186639955,-61719.47928007,0.00018343,2]
[345360912,1734186639966,-324.80699999,0.00018343,2]
[345360913,1734186639977,-298.2975,0.00018343,2]
[345360914,1734186639988,-2528.15360176,0.00018343,2]
[345360915,1734186640000,-8443.56639824,0.00018343,2]
[345360916,1734186640012,-916.96445995,0.00018343,2]
[345360923,1734186642927,-44.25337264,0.00018343,2]
[345360924,1734186642938,-10422.80521278,0.00018343,2]
[345360925,1734186642973,-2562.0,0.00018343,2]
[345360926,1734186642983,-10461.17145173,0.00018343,2]
[345360927,1734186643002,-4415.1379485,0.00018343,2]
[345360928,1734186643013,-29.33377434,0.00018343,2]
[345360929,1734186643023,-804.79878143,0.00018481,2]
[345360930,1734186643034,-8173.25296928,0.00018481,2]
[345360931,1734186643046,-863.97824929,0.00018481,2]
[345360932,1734186643057,-200.0,0.00018481,2]
[345360933,1734186643066,-792.02175071,0.00018482,2]
[345360934,1734186643103,-7501.5769464,0.00018482,2]
[345360935,1734186643112,-220.53,0.00018582,2]
[345360936,1734186643121,-8293.59869711,0.00018693,2]
[345360937,1734186643252,-6505.30328348,0.000187,2]
[345360938,1734186643262,-627.55,0.00018749,2]
[345360939,1734186643271,-1000.0,0.00018753,2]
[345360940,1734186643280,-1852.42,0.0001876,2]
[345360941,1734186643289,-200.0,0.00018791,2]
[345360942,1734186643299,-627.58,0.00018792,2]
[345360943,1734186643307,-292.09107463,0.00018816,2]
[345360944,1734186643316,-500.0,0.00018816,2]
[345360945,1734186643326,-500.0,0.00018816,2]
[345360946,1734186643335,-464.35723961,0.00018816,2]
[345360947,1734186643346,-23900.0,0.00018817,2]
[345360948,1734186643356,-439.79,0.0001882,2]
[345360949,1734186643366,-194.92,0.0001882,2]
[345360950,1734186643375,-250.0,0.00018832,2]
[345360951,1734186643385,-25483.03187841,0.000189,2]
[345360952,1734186643394,-8293.59869711,0.00018904,2]
[345360953,1734186643403,-250.0,0.00018908,2]
[345360954,1734186643412,-1500.0,0.00018958,2]
[345360955,1734186643422,-250.0,0.00018983,2]
[345360956,1734186643432,-600.0,0.00019,2]
[345360957,1734186643440,-11553.05641554,0.0001901,2]
[345360960,1734186645664,-730.49641049,0.00018526,2]
[345360961,1734186645676,-773.40358951,0.00018526,2]
[345360962,1734186645685,-2858.09420224,0.0001901,2]
[345360963,1734186645696,-545.69968983,0.0001901,2]
[345360964,1734186645907,-1090.17117566,0.0001901,2]
[345360965,1734186645919,-141.33336984,0.0001901,2]
[345360966,1734186645929,-1398.66663016,0.0001911,2]
[345360967,1734186645940,-536.53736174,0.0001911,2]
[345360968,1734186645952,-609.76595484,0.0001911,2]
[345360969,1734186645961,-1390.23404516,0.00019115,2]
[345360970,1734186645973,-6903.36465195,0.00019115,2]
[345360971,1734186645983,-1000.0,0.00019178,5]
[345360972,1734186645992,-1682.96,0.0001925,2]
[345360973,1734186646001,-220.53,0.0001927,2]
[345360974,1734186646013,-200.0,0.00019272,2]
[345360975,1734186646023,-1161.85608773,0.00019326,2]
[345360976,1734186646035,-1330.4897294,0.00019326,2]
[345360977,1734186646046,-5801.25287998,0.00019326,2]
[345360979,1734186646056,-197.01,0.00019351,2]
[345360980,1734186646065,-1000.0,0.00019387,2]
[345360982,1734186646075,-500.0,0.000194,7]
[345360984,1734186646085,-1005.89917021,0.00019452,6]
[345360985,1734186646094,-150.0,0.00019487,2]
[345360986,1734186646103,-1100.0,0.000195,7]
[345360987,1734186646113,-500.0,0.00019507,2]
[345360988,1734186646123,-194.92,0.00019516,2]
[345360989,1734186646132,-162.6,0.00019527,2]
[345360990,1734186646142,-8293.59869711,0.00019536,2]
[345360991,1734186646151,-1365.0794898,0.000196,7]
[345360993,1734186646167,-234.9205102,0.000196,7]
[345360995,1734186646176,-151.0,0.00019684,2]
[345360997,1734186646185,-2637.0,0.000197,2]
[345360999,1734186646194,-853.0574898,0.000197,7]
[345361004,1734186739690,167.03,0.00015391,2]
[345361005,1734187019291,163.67069946,0.00012001,2]
[345361009,1734187641123,-1203.11630729,0.00015107,2]
[345361010,1734187645321,-292.2792939,0.00015107,2]
[345361011,1734187645363,-409.28472633,0.00015206,2]
[345361012,1734187645411,-409.28472633,0.00015207,2]
[345361013,1734187645451,-150.0,0.00015288,2]
[345361014,1734187645486,-150.0,0.00015306,2]
[345361015,1734187645520,-3656.31699976,0.00015307,2]
[345361017,1734187750120,-152.54,0.00013699,2]
[345361018,1734187750144,-172.67,0.00014747,2]
[345361019,1734187750164,-300.0,0.00015306,2]
[345361020,1734187750300,-4203.69780701,0.00015307,2]
[345361021,1734187750321,-5000.0,0.00015307,2]
[345361022,1734187750342,-5000.0,0.00015307,2]
[345361023,1734187750363,-5000.0,0.00015307,2]
[345361024,1734187750384,-5000.0,0.00015307,2]
[345361025,1734187750405,-696.309153,0.00016701,2]
[345361026,1734187750426,-175.42,0.00016712,2]
[345361028,1734187756092,-1637.21,0.00017145,2]
[345361029,1734187808405,155.8,0.00018681,30]
[345361038,1734187832002,-568.17990878,0.00018375,2]
[345361039,1734187832013,-2819.72009122,0.00018375,2]
[345361040,1734187832022,-161.01,0.00018375,2]
[345361041,1734187832031,-854.57,0.00018378,2]
[345361042,1734187832040,-200.0,0.00018388,2]
[345361043,1734187832050,-200.0,0.00018436,2]
[345361044,1734187832059,-2998.3718625,0.00018454,2]
[345361045,1734187832070,-453.21653124,0.00018454,2]
[345361046,1734187832205,-682.4999995,0.00018454,2]
[345361047,1734187832218,-1228.47,0.00018454,2]
[345361048,1734187832324,-1066.25160676,0.00018454,2]
[345361049,1734187832335,-157.6,0.00018486,2]
[345361050,1734187832344,-1000.0,0.00018537,2]
[345361051,1734187832353,-5410.98,0.00018538,2]
[345361052,1734187832362,-406.01531737,0.00018561,2]
[345361053,1734187832371,-406.01531737,0.00018636,2]
[345361054,1734187832380,-200.0,0.00018644,2]
[345361055,1734187832391,-200.0,0.00018714,2]
[345361056,1734187832400,-848.16,0.00018839,2]
[345361057,1734187832410,-1000.0,0.00018849,2]
[345361058,1734187832419,-2547.18,0.00018876,2]
[345361059,1734187832429,-8572.26,0.00018899,2]
[345361060,1734187832438,-1396.95,0.0001891,2]
[345361061,1734187832447,-786.05,0.00018937,2]
[345361062,1734187832457,-250.0,0.00018958,2]
[345361063,1734187832469,-250.0,0.00018978,2]
[345361064,1734187832480,-928.04,0.00018987,2]
[345361065,1734187832490,-3394.22,0.00018991,2]
[345361066,1734187832500,-65056.42,0.00018999,2]
[345361067,1734187832510,-406.01531737,0.00019002,2]
[345361068,1734187832519,-250.0,0.00019027,2]
[345361069,1734187832529,-854.57,0.00019058,2]
[345361070,1734187832539,-406.01531737,0.00019205,2]
[345361072,1734187832548,-1226.09,0.00019229,2]
[345361074,1734187832557,-664.69,0.00019275,2]
[345361076,1734187832567,-164.2,0.00019314,2]
[345361078,1734187832577,-3853.33,0.0001935,2]
[345361079,1734187832586,-300.0,0.000194,7]
[345361080,1734187832595,-157.6,0.0001941,2]
[345361081,1734187832604,-700.0,0.000195,7]
[345361082,1734187832613,-161.01,0.00019524,2]
[345361083,1734187832623,-1100.0,0.000196,7]
[345361084,1734187832632,-1396.95,0.0001961,2]
[345361085,1734187832641,-3317.43947888,0.00019613,2]
[345361086,1734187832650,-151.0,0.00019684,2]